bitfinex-derivatives/quotes_ETHF0:USTF0_20220108
["timestamp","ask_amount","ask_price","bid_price","bid_amount"]
[1641665101330,1.5,3027.9,3027.8,1.65019497]
[1641665101530,1.5,3027.9,3027.8,3.65498497]
[1641665101930,1.764788,3027.9,3027.8,3.65498497]
[1641665102334,1.5,3027.9,3027.8,3.65498497]
[1641665102732,1.5,3027.9,3027.8,2.00479]
[1641665102932,6.5,3027.9,3025.4,0.08255]
[1641665103135,1.5,3027.4,3025.4,0.08255]
[1641665103330,1.5,3026.4,3025.4,0.08255]
[1641665103531,1.5,3025.8,3025.4,0.08255]
[1641665103731,0.905575,3025.7,3025.3,6.65169406]
[1641665103931,1.5,3025.4,3025.3,5.0]
[1641665104133,0.264788,3025.4,3025.3,5.0]
[1641665104531,8.11938932,3025.4,3025.3,5.0]
[1641665104731,9.61938932,3025.4,3025.3,0.0001]
[1641665104932,8.11938932,3025.4,3025.3,0.0001]
[1641665105132,8.11938932,3025.4,3022.8,0.08262]
[1641665105331,6.61938932,3025.4,3024.0,1.65235452]
[1641665105540,2.00479,3025.3,3024.8,1.65196691]
[1641665105735,2.00479,3025.3,3024.9,0.639188]
[1641665105933,2.00479,3025.3,3024.8,1.65196691]
[1641665106136,1.5,3024.9,3024.8,1.65196691]
[1641665106633,2.3703628,3024.9,3024.8,1.65196691]
[1641665107235,5.0,3025.3,3024.8,1.65196691]
[1641665107434,5.0,3024.9,3024.8,0.08264]
[1641665107633,5.0,3024.9,3024.8,2.643978]
[1641665107634,4.00846075,3024.9,3024.8,2.643978]
[1641665107834,5.0,3025.3,3024.8,2.726618]
[1641665108035,5.0,3025.3,3024.9,0.08264]
[1641665108436,5.0,3025.3,3025.1,1.19001866]
[1641665108732,5.0,3025.3,3024.8,2.643978]
[1641665108733,2.00479,3027.3,3025.2,0.08262]
[1641665108935,0.6725,3026.7,3024.9,0.08261]
[1641665109134,1.5,3026.3,3024.9,0.08261]
[1641665109333,2.00479,3027.3,3024.8,2.00479]
[1641665109334,1.5,3026.6,3024.8,2.00479]
[1641665109535,1.5,3025.5,3024.8,2.00479]
[1641665109735,0.640787,3025.4,3024.9,0.639188]
[1641665109933,2.00479,3025.9,3024.9,0.639188]
[1641665110137,2.00479,3025.9,3024.8,2.00479]
[1641665110138,2.00479,3025.9,3025.0,0.08262]
[1641665110338,2.00479,3025.9,3024.8,2.00479]
[1641665110539,1.5,3025.4,3025.0,1.65184685]
[1641665110735,1.41739,3025.9,3024.8,2.00479]
[1641665111036,1.5,3025.4,3024.8,2.00479]
[1641665111234,6.41739,3025.9,3024.8,2.00479]
[1641665111435,0.19726104,3025.4,3024.8,2.00479]
[1641665111636,0.19726104,3025.4,3025.3,2.00479]
[1641665111836,7.07861,3025.9,3025.3,2.726598]
[1641665112138,13.95995896,3025.4,3025.3,2.726598]
[1641665112336,13.95995896,3025.4,3025.3,2.643978]
[1641665112535,2.00479,3027.5,3025.3,2.643978]
[1641665112738,3.50479,3027.5,3025.4,0.0826]
[1641665113037,3.50479,3027.5,3025.3,2.643978]
[1641665113235,2.00479,3027.5,3025.9,0.99140785]
[1641665113436,1.5,3027.4,3026.0,0.08258]
[1641665113639,1.5,3027.6,3027.3,2.00479]
[1641665114036,2.00479,3027.8,3027.3,2.00479]
[1641665114238,1.5,3028.0,3027.3,2.08736]
[1641665114440,0.264788,3027.9,3027.3,2.00479]
[1641665114841,1.5,3027.4,3027.3,2.00479]
[1641665115039,1.764788,3027.4,3027.3,2.00479]
[1641665115440,1.764788,3027.4,3027.0,2.00479]
[1641665115640,1.5,3027.1,3025.5,1.73384313]
[1641665115840,1.5,3026.9,3025.0,0.83253907]
[1641665116042,1.5,3026.9,3025.1,0.08261]
[1641665116342,2.00479,3027.4,3025.9,1.6510941]
[1641665116539,1.5,3026.8,3025.9,1.6510941]
[1641665117349,1.5,3026.0,3025.4,0.08258]
[1641665117545,1.5,3025.5,3025.0,2.00479]
[1641665117743,1.5,3025.5,3024.6,2.83732907]
[1641665117944,2.00479,3025.7,3024.6,2.83732907]
[1641665118443,1.5,3025.0,3024.6,2.83732907]
[1641665118643,1.5,3024.9,3024.6,2.83732907]
[1641665119247,1.5,3024.7,3024.6,2.00479]
[1641665119448,1.5,3024.7,3023.8,0.83253907]
[1641665119449,2.140787,3024.7,3023.8,0.83253907]
[1641665119746,2.00479,3024.4,3023.8,0.83253907]
[1641665119948,1.5,3024.1,3023.8,0.83253907]
[1641665120349,2.00479,3024.4,3023.8,0.83253907]
[1641665120350,1.5,3024.2,3023.8,0.83253907]
[1641665120550,1.5,3023.9,3023.8,0.83253907]
[1641665120950,1.764788,3023.9,3023.6,3.10623557]
[1641665121149,2.00479,3024.4,3023.6,2.00479]
[1641665121150,1.63602122,3024.4,3023.6,2.00479]
[1641665121352,1.65303464,3024.0,3022.9,1.37675825]
[1641665121554,2.00479,3023.5,3022.9,1.37675825]
[1641665121751,0.264788,3023.4,3023.0,0.264788]
[1641665121951,0.640787,3023.5,3023.0,0.264788]
[1641665122452,0.905575,3023.5,3023.0,0.264788]
[1641665122653,1.17118501,3023.4,3023.0,0.264788]
[1641665123256,1.17118501,3023.4,3022.6,2.00479]
[1641665123456,0.264788,3023.3,3022.7,0.264788]
[1641665123654,3.17597501,3023.4,3022.7,5.76795478]
[1641665123858,3.17597501,3023.4,3022.7,0.903976]
[1641665124054,1.17118501,3023.4,3022.7,0.903976]
[1641665124259,1.17118501,3023.4,3023.1,4.86397878]
[1641665124455,1.17118501,3023.4,3022.7,0.903976]
[1641665124456,1.17118501,3023.4,3023.3,4.86397878]
[1641665124658,1.17118501,3023.4,3022.9,4.86397878]
[1641665124855,1.17118501,3023.4,3023.3,1.65243097]
[1641665125055,1.17118501,3023.4,3023.1,4.86397878]
[1641665125456,1.17118501,3023.4,3023.2,0.264788]
[1641665125757,1.17118501,3023.4,3023.3,4.00958]
[1641665126157,1.43597301,3023.4,3022.7,0.639188]
[1641665127357,1.43597301,3023.4,3022.5,4.86397878]
[1641665127558,3.44076301,3023.4,3022.7,2.00479]
[1641665127761,6.63602121,3022.8,3021.3,0.4171539]
[1641665127973,6.63602121,3022.7,3021.3,0.4171539]
[1641665128158,7.00479,3023.4,3021.3,0.4171539]
[1641665128159,0.08272,3022.6,3021.3,0.4171539]
[1641665128358,0.08272,3022.7,3021.3,0.4171539]
[1641665128559,1.21461509,3022.5,3021.3,0.4171539]
[1641665128761,1.21461509,3022.5,3021.5,4.86397878]
[1641665128961,1.21461509,3022.5,3021.3,0.4998739]
[1641665129160,1.21461509,3022.5,3021.3,0.4171539]
[1641665129562,2.00479,3022.1,3021.4,2.00479]
[1641665129762,0.905575,3022.0,3021.3,0.4171539]
[1641665129961,0.640787,3022.0,3021.4,0.903976]
[1641665130163,2.00479,3022.1,3021.4,0.903976]
[1641665130361,2.00479,3022.1,3022.0,4.86397878]
[1641665130564,1.5,3024.1,3022.0,0.264788]
[1641665130763,0.08269,3024.4,3022.0,1.764788]
[1641665130965,27.55407981,3024.5,3022.1,0.08269]
[1641665131162,1.5,3023.3,3020.9,1.18908772]
[1641665131363,1.5,3022.9,3020.9,1.18908772]
[1641665131664,1.5,3023.4,3021.4,2.00479]
[1641665131665,3.50479,3022.2,3021.4,2.00479]
[1641665131862,2.00479,3022.2,3021.5,0.767955]
[1641665132162,2.00479,3022.2,3019.8,0.08273]
[1641665132363,2.00479,3022.2,3019.6,0.08275]
[1641665132763,0.95531103,3022.1,3019.9,1.1120677]
[1641665132963,2.45531103,3022.1,3020.0,0.08275]
[1641665133163,2.45531103,3022.1,3020.0,5.378921]
[1641665133164,0.95531103,3022.1,3020.0,5.378921]
[1641665133664,2.00479,3021.5,3020.8,2.00479]
[1641665133862,2.00479,3021.5,3020.9,0.08273]
[1641665134463,2.00479,3021.5,3020.9,1.73624024]
[1641665134665,0.99069,3021.5,3020.9,0.08273]
[1641665135068,0.04001119,3021.5,3021.4,1.65320954]
[1641665135267,1.65320954,3023.2,3021.4,1.65320954]
[1641665135268,1.65320954,3023.2,3021.4,1.73593954]
[1641665135473,0.89967118,3032.9,3021.4,5.3782]
[1641665135474,1.5,3024.0,3021.4,5.3782]
[1641665135668,1.5,3024.0,3023.1,2.00479]
[1641665136066,2.00479,3024.1,3023.1,2.00479]
[1641665136266,1.5,3023.2,3022.9,0.08268]
[1641665136467,0.640787,3023.3,3021.8,1.65313575]
[1641665136668,0.640787,3023.3,3022.1,0.99266975]
[1641665136870,2.00479,3024.1,3022.2,0.08269]
[1641665137370,5.0,3023.8,3023.1,1.65239821]
[1641665137569,5.0,3024.1,3023.6,1.65214705]
[1641665137769,5.0,3024.1,3023.7,4.09224]
[1641665137970,5.0,3023.8,3023.7,4.09224]
[1641665138271,5.0,3024.1,3023.7,4.09224]
[1641665138669,5.0,3024.1,3023.8,5.29118]
[1641665138872,5.0,3024.1,3024.0,1.6514813]
[1641665139170,1.5,3025.9,3024.0,0.08267]
[1641665139373,1.5,3025.9,3024.0,5.373587]
[1641665139569,2.00479,3025.8,3025.1,2.00479]
[1641665140171,0.905575,3025.7,3025.2,0.08262]
[1641665140370,1.5,3025.3,3025.1,2.00479]
[1641665140572,5.640787,3025.7,3025.1,2.00479]
[1641665140769,5.0,3025.7,3025.1,2.00479]
[1641665140972,5.0,3025.7,3025.2,0.08262]
[1641665141172,6.5,3025.7,3025.1,2.00479]
[1641665141371,1.5,3025.6,3024.8,2.00479]
[1641665141569,2.00479,3025.3,3024.2,2.00479]
[1641665141769,1.5,3024.6,3024.2,2.00479]
[1641665141973,0.264788,3024.7,3024.2,2.00479]
[1641665142172,1.5,3025.1,3024.2,2.00479]
[1641665142472,7.00479,3025.3,3024.3,0.08265]
[1641665142671,7.00479,3025.3,3024.2,2.00479]
[1641665142672,1.5,3025.1,3024.2,2.00479]
[1641665142870,7.00479,3025.3,3023.9,2.00479]
[1641665142871,1.5,3024.4,3023.9,2.00479]
[1641665143072,0.905575,3024.3,3023.5,0.83367078]
[1641665143272,1.5,3023.9,3023.5,0.83367078]
[1641665143471,0.264788,3023.8,3023.5,0.83367078]
[1641665143673,3.50479,3023.6,3023.5,0.83367078]
[1641665143872,3.50479,3023.6,3022.8,0.83367078]
[1641665144072,0.264788,3023.5,3022.8,0.83367078]
[1641665144271,1.5,3022.9,3022.8,0.83367078]
[1641665144672,2.00479,3023.6,3022.8,0.83367078]
[1641665144973,1.5,3022.9,3022.8,0.83367078]
[1641665145373,6.5,3022.9,3022.6,1.1120677]
[1641665145572,1.5,3022.7,3021.9,0.83367078]
[1641665145775,4.00958,3022.7,3021.9,0.83367078]
[1641665145976,4.00958,3022.7,3021.6,1.1120677]
[1641665146174,1.5,3021.7,3021.6,1.1120677]
[1641665146374,1.764788,3021.7,3021.6,1.1120677]
[1641665146575,1.5,3021.7,3021.6,1.1120677]
[1641665146777,7.52678708,3021.7,3020.9,1.1120677]
[1641665147575,6.02678708,3021.7,3020.9,1.1120677]
[1641665147776,6.02678708,3021.7,3021.1,2.00479]
[1641665148176,3.685,3021.7,3021.2,6.28850908]
[1641665148376,1.16877216,3021.7,3021.3,0.08273]
[1641665148577,1.02917216,3021.7,3021.3,13.84273]
[1641665148777,1.02917216,3021.7,3021.5,13.76]
[1641665148978,1.02917216,3021.7,3021.6,1.27412437]
[1641665149180,0.69197216,3021.7,3021.6,20.32933137]
[1641665149482,1.5,3024.1,3021.6,20.32933137]
[1641665149679,1.23232731,3024.6,3021.6,20.32933137]
[1641665149680,1.09825694,3023.8,3023.6,2.00479]
[1641665149882,2.140787,3023.7,3023.6,2.00479]
[1641665150079,3.79387083,3023.7,3022.3,0.08268]
[1641665150281,0.640787,3023.7,3022.0,0.08269]
[1641665150480,1.5,3023.3,3021.5,1.1947577]
[1641665150983,1.5,3023.3,3022.1,5.293018]
[1641665151181,6.5,3023.3,3022.2,0.08269]
[1641665151383,1.5,3023.1,3022.2,5.29328]
[1641665151581,5.0,3023.3,3022.2,5.29328]
[1641665151782,2.00479,3022.7,3021.5,10.2043377]
[1641665152382,1.5,3022.4,3021.5,10.2043377]
[1641665152982,7.00479,3022.7,3021.5,10.2043377]
[1641665153184,5.0,3022.4,3021.5,10.2043377]
[1641665153381,1.5,3022.3,3021.5,10.2043377]
[1641665153582,0.640787,3022.2,3021.5,10.2043377]
[1641665153783,2.00479,3021.6,3021.5,10.2043377]
[1641665153983,2.00479,3021.6,3021.5,11.19719933]
[1641665154282,2.00479,3021.9,3021.5,11.19719933]
[1641665154485,5.0,3021.6,3021.5,10.2043377]
[1641665154683,7.00479,3021.9,3021.5,10.2043377]
[1641665154882,5.0,3021.6,3021.5,10.2043377]
[1641665155283,5.0,3021.9,3021.5,10.2043377]
[1641665155484,4.00728337,3021.9,3021.5,10.2043377]
[1641665155683,2.00479,3022.7,3021.8,2.00479]
[1641665155884,2.00479,3022.7,3021.9,0.08271]
[1641665156083,2.00479,3022.7,3021.9,5.376078]
[1641665156285,2.00479,3023.0,3021.9,5.376078]
[1641665156885,2.00479,3023.0,3022.1,1.6529472]
[1641665157285,2.00479,3023.0,3022.2,5.293543]
[1641665157485,7.00479,3023.0,3022.2,5.293543]
[1641665157686,7.00479,3023.0,3022.7,1.65262213]
[1641665157888,1.5,3023.5,3023.0,1.19086167]
[1641665158086,1.5,3023.5,3023.1,0.08269]
[1641665158286,6.5,3023.5,3023.1,0.08269]
[1641665158687,6.5,3023.5,3023.0,1.19086167]
[1641665158886,4.027,3023.5,3023.0,1.19086167]
[1641665159087,4.027,3023.5,3023.1,0.08269]
[1641665159290,4.027,3023.5,3023.1,5.375007]
[1641665159487,33.23011865,3026.1,3023.1,5.375007]
[1641665159689,0.7845,3025.0,3024.7,2.00479]
[1641665159888,4.49330803,3025.3,3024.9,1.65143766]
[1641665160287,3.83540803,3025.3,3024.8,5.288556]
[1641665160491,3.93759503,3025.3,3024.7,2.00479]
[1641665160889,3.93759503,3025.3,3024.0,0.08264]
[1641665160890,0.7845,3024.8,3024.0,0.08264]
[1641665161087,0.27780803,3025.0,3024.0,0.08264]
[1641665161589,0.03387503,3026.1,3024.2,1.46612497]
[1641665161890,0.03387503,3024.4,3023.0,0.4847]
[1641665162090,0.03387503,3024.5,3022.7,1.11170463]
[1641665162292,0.03387503,3023.8,3022.7,1.11170463]
[1641665162492,0.03387503,3024.3,3022.7,1.11170463]
[1641665162789,0.03387503,3023.4,3022.7,1.11170463]
[1641665162989,0.03387503,3022.8,3022.3,1.66557128]
[1641665163390,0.264788,3022.7,3022.3,1.66557128]
[1641665163589,0.264788,3022.7,3021.2,1.11230442]
[1641665163791,2.00479,3022.3,3021.6,2.00479]
[1641665164093,0.6725,3024.3,3022.2,1.46612497]
[1641665164291,0.03387503,3024.2,3022.8,1.46612497]
[1641665164488,29.09752703,3025.1,3022.8,1.46612497]
[1641665164489,0.03387503,3025.0,3022.8,1.46612497]
[1641665164687,29.09752703,3025.1,3022.9,0.08266]
[1641665165088,0.6725,3025.0,3022.8,1.46612497]
[1641665165291,0.03387503,3024.8,3022.8,1.46612497]
[1641665165487,0.03387503,3024.3,3022.8,1.46612497]
[1641665165691,2.00479,3023.9,3023.1,2.00479]
[1641665165890,0.905575,3023.8,3022.3,0.08268]
[1641665166088,0.905575,3023.8,3022.2,1.46612497]
[1641665166491,0.03387503,3023.6,3021.8,0.08269]
[1641665166691,0.03387503,3022.6,3021.2,1.66557128]
[1641665166892,0.03387503,3023.1,3021.2,1.66557128]
[1641665167092,0.03387503,3022.6,3021.2,1.66557128]
[1641665167293,13.76,3023.1,3021.0,2.08276771]
[1641665167294,0.03387503,3022.4,3021.0,0.83470106]
[1641665167692,2.00479,3021.5,3021.0,0.83470106]
[1641665167893,2.00479,3021.5,3021.1,0.640787]
[1641665168295,0.08273,3023.1,3021.4,1.46612497]
[1641665168495,0.6725,3023.2,3021.2,5.378443]
[1641665168695,1.11206099,3023.0,3021.5,5.294068]
[1641665168895,1.11206099,3023.0,3021.1,0.640787]
[1641665169093,0.03387503,3021.8,3021.3,5.294156]
[1641665169295,0.905575,3021.7,3020.8,2.00479]
[1641665169695,2.00479,3021.2,3020.8,2.00479]
[1641665169894,2.00479,3021.2,3020.3,1.46612497]
[1641665170297,0.264788,3021.1,3020.3,1.46612497]
[1641665170596,0.03387503,3020.8,3019.9,0.08275]
[1641665170898,0.03387503,3020.8,3019.8,0.83470106]
[1641665171297,10.0,3021.5,3019.7,0.83470106]
[1641665171496,0.08277,3021.4,3019.7,0.83470106]
[1641665171696,2.00479,3021.0,3020.0,2.00479]
[1641665172299,1.65481543,3020.9,3020.0,2.00479]
[1641665172699,2.00479,3021.0,3020.0,2.00479]
[1641665173500,2.00479,3021.0,3020.2,4.41245]
[1641665173698,0.08276,3021.3,3020.9,4.00958]
[1641665173898,10.0,3021.5,3020.9,4.00958]
[1641665174299,10.905575,3021.5,3020.9,4.00958]
[1641665174899,1.65491676,3021.0,3019.4,0.6725]
[1641665175101,1.65499345,3020.6,3019.0,0.08276]
[1641665175402,1.65522356,3020.4,3018.9,0.91748106]
[1641665175598,1.65522356,3020.4,3018.7,1.11442232]
[1641665175599,1.65504823,3020.5,3019.3,0.83470106]
[1641665175801,2.00479,3019.6,3019.3,0.83470106]
[1641665176001,2.00479,3019.9,3019.3,0.83470106]
[1641665176200,2.00479,3019.9,3019.7,4.41245]
[1641665176402,3.92491389,3019.9,3019.3,0.83470106]
[1641665176600,2.269578,3019.9,3019.3,0.83470106]
[1641665177202,1.65541536,3019.8,3019.3,0.83470106]
[1641665177403,1.65541536,3019.8,3018.8,0.83470106]
[1641665177404,0.264788,3019.7,3018.8,0.83470106]
[1641665177601,1.92024173,3019.7,3018.8,0.83470106]
[1641665177800,2.00479,3019.1,3018.8,0.83470106]
[1641665178402,0.905575,3019.0,3018.8,0.83470106]
[1641665178600,0.905575,3019.0,3018.5,1.11442232]
[1641665179002,0.905575,3019.0,3018.1,3.67036128]
[1641665179300,0.905575,3019.0,3017.8,4.41245]
[1641665179501,1.65582378,3019.0,3017.5,1.11442232]
[1641665179700,2.00479,3018.6,3017.9,2.00479]
[1641665179902,2.00479,3018.6,3018.1,2.51445]
[1641665180101,2.00479,3019.1,3018.1,2.51445]
[1641665180303,2.00479,3019.1,3018.0,0.640787]
[1641665180304,2.00479,3019.1,3018.0,0.723587]
[1641665180505,1.65607606,3018.6,3017.6,2.51445]
[1641665180703,1.65592249,3018.9,3017.6,2.51445]
[1641665180902,1.65592249,3018.9,3017.6,2.51245]
[1641665181102,0.08282,3019.0,3014.9,38.8741]
[1641665181303,1.5,3018.6,3017.6,3.41718]
[1641665181501,1.5,3018.6,3016.2,1.5]
[1641665181502,1.5,3018.4,3017.1,3.41718]
[1641665181702,2.00479,3018.1,3017.4,2.00479]
[1641665181902,0.905575,3018.0,3017.1,2.00479]
[1641665182104,1.65651773,3018.2,3016.6,4.91718]
[1641665182304,1.65651773,3018.2,3016.4,4.91718]
[1641665182305,0.08284,3017.9,3016.4,4.91718]
[1641665182505,1.6567867,3017.7,3016.3,1.11410602]
[1641665182708,5.303457,3018.0,3016.4,6.57376085]
[1641665182906,1.51643871,3017.6,3016.4,4.91718]
[1641665183110,0.08286,3017.5,3016.4,6.57373066]
[1641665183306,1.51643871,3017.6,3016.4,4.91718]
[1641665183707,2.00479,3017.1,3016.4,5.42197]
[1641665183909,0.264788,3017.0,3016.1,2.00479]
[1641665184107,1.65727269,3016.8,3016.1,2.00479]
[1641665184310,0.347658,3016.7,3015.1,1.65727269]
[1641665184510,0.347658,3016.7,3014.4,1.66557128]
[1641665184710,1.5,3016.5,3014.4,1.66557128]
[1641665184908,0.0829,3016.4,3014.4,1.66557128]
[1641665185308,2.00479,3017.1,3014.4,1.66557128]
[1641665185309,0.0829,3016.9,3014.4,1.66557128]
[1641665185508,0.0829,3017.0,3014.4,1.66557128]
[1641665185710,2.00479,3015.7,3015.0,2.00479]
[1641665186007,2.00479,3016.0,3015.1,0.905575]
[1641665186208,0.0829,3016.8,3015.1,2.405575]
[1641665186410,13.84289,3018.2,3015.1,2.405575]
[1641665186609,0.08289,3018.2,3016.6,1.5]
[1641665186810,0.08289,3018.2,3016.1,1.5]
[1641665187210,0.08289,3018.2,3016.7,1.5]
[1641665187411,0.08284,3018.5,3016.0,1.5]
[1641665187810,2.00479,3017.8,3017.1,2.00479]
[1641665188010,2.00479,3017.8,3017.2,0.905575]
[1641665188814,0.08284,3020.0,3017.7,1.5]
[1641665189213,0.08284,3020.0,3017.3,1.58284]
[1641665189413,0.6725,3019.4,3017.7,1.53056307]
[1641665189614,0.6725,3019.4,3017.8,0.08282]
[1641665189814,17.08761,3019.6,3019.3,1.65485377]
[1641665190014,17.08761,3019.6,3019.4,0.264788]
[1641665190216,17.08761,3019.6,3019.5,1.65467304]
[1641665190415,17.08761,3019.6,3019.0,0.08279]
[1641665190818,17.08761,3019.6,3016.3,1.19348448]
[1641665190819,0.264788,3019.5,3017.8,0.0828]
[1641665191014,0.264788,3019.5,3017.1,0.0828]
[1641665191214,1.764788,3019.5,3017.1,0.08281]
[1641665191413,1.764788,3019.5,3016.0,0.08282]
[1641665191916,2.00479,3018.6,3017.9,2.00479]
[1641665192122,1.5,3020.4,3018.0,0.988395]
[1641665192616,1.5,3020.6,3018.0,0.988395]
[1641665193020,1.5,3020.6,3018.1,5.299417]
[1641665193218,1.5,3020.6,3018.2,0.08279]
[1641665193818,1.5,3020.6,3020.2,2.00479]
[1641665194018,1.764788,3020.6,3020.2,2.00479]
[1641665194418,2.00479,3020.9,3020.1,0.640787]
[1641665194919,0.81039774,3022.9,3020.2,0.347548]
[1641665195117,0.81039774,3022.9,3020.7,0.40011198]
[1641665195318,0.81039774,3022.9,3021.0,0.40011198]
[1641665195519,1.91028576,3022.9,3020.8,3.79784198]
[1641665195718,1.91028576,3022.9,3022.4,2.00479]
[1641665195719,1.09988802,3022.9,3022.4,2.00479]
[1641665195917,0.264788,3022.8,3022.4,2.00479]
[1641665196318,0.264788,3022.8,3022.4,3.6580624]
[1641665196518,1.09988802,3022.7,3022.4,2.00479]
[1641665196718,0.85830723,3022.9,3020.7,0.08271]
[1641665196719,1.09988802,3022.5,3020.7,0.08271]
[1641665196921,0.85830723,3022.9,3020.7,0.08271]
[1641665196922,1.09988802,3022.0,3021.0,1.65403535]
[1641665197119,1.09988802,3022.0,3020.0,1.51317338]
[1641665197418,1.09988802,3022.0,3020.2,0.99331113]
[1641665197621,1.09988802,3022.0,3020.3,0.08275]
[1641665197918,2.00479,3021.6,3020.9,2.00479]
[1641665198118,1.09988802,3021.2,3020.9,2.00479]
[1641665198319,2.00479,3021.6,3020.9,2.00479]
[1641665198518,1.43015797,3021.5,3020.9,2.00479]
[1641665198920,2.7548979,3021.0,3019.6,1.65482912]
[1641665199122,1.09988802,3020.4,3019.6,1.65482912]
[1641665199323,0.264788,3020.3,3018.4,0.08276]
[1641665199520,1.09988802,3019.7,3018.2,0.08279]
[1641665199722,2.00479,3019.6,3018.8,2.00479]
[1641665199920,2.00479,3019.6,3018.9,0.905575]
[1641665200120,1.09988802,3020.8,3018.9,6.204992]
[1641665200321,1.09988802,3020.8,3019.1,0.99366839]
[1641665200723,1.09988802,3020.8,3019.2,5.2981]
[1641665201123,1.09988802,3020.4,3019.2,5.2981]
[1641665201328,1.09988802,3019.9,3019.3,0.08278]
[1641665201523,1.36467602,3019.9,3019.3,0.264788]
[1641665201723,1.36467602,3019.9,3019.5,2.00479]
[1641665202623,1.34049497,3019.8,3018.8,2.00479]
[1641665202824,1.09988802,3019.3,3018.8,2.00479]
[1641665203025,0.264788,3019.2,3018.8,2.00479]
[1641665203424,0.264788,3019.2,3017.6,1.27578522]
[1641665203425,1.09988802,3018.9,3016.9,0.4886]
[1641665203624,1.09988802,3018.9,3017.2,0.99427847]
[1641665203925,3.10467802,3018.9,3018.2,2.00479]
[1641665204123,0.264788,3018.8,3018.2,2.00479]
[1641665204322,0.264788,3018.8,3018.2,2.910365]
[1641665204727,2.00479,3019.2,3018.2,2.910365]
[1641665205625,1.09988802,3019.1,3018.2,2.910365]
[1641665205826,2.00479,3019.2,3018.7,2.00479]
[1641665206031,0.264788,3019.1,3018.7,2.00479]
[1641665206228,0.264788,3019.1,3016.9,0.99438452]
[1641665206229,1.09988802,3018.8,3016.9,0.99438452]
[1641665206429,1.09988802,3018.2,3017.0,0.08283]
[1641665206827,1.65604863,3019.1,3017.4,1.65604863]
[1641665207030,1.6564409,3018.4,3016.6,1.6564409]
[1641665207230,1.09988802,3017.7,3016.3,0.08282]
[1641665207632,1.09988802,3017.6,3016.3,0.08282]
[1641665207828,2.00479,3017.5,3016.8,2.00479]
[1641665208032,0.264788,3017.4,3016.8,2.00479]
[1641665208228,0.264788,3017.4,3016.9,0.264788]
[1641665208628,0.264788,3017.4,3016.8,2.00479]
[1641665208829,1.36467602,3017.4,3016.8,2.00479]
[1641665209032,1.36467602,3017.4,3016.8,2.269578]
[1641665209230,1.09988802,3016.9,3016.5,2.00479]
[1641665209428,0.264788,3016.8,3014.9,0.08287]
[1641665209629,0.264788,3016.8,3015.6,0.08287]
[1641665209831,3.10467802,3017.5,3016.5,2.00479]
[1641665210030,3.10467802,3017.5,3016.5,3.66130499]
[1641665210031,2.00479,3017.5,3016.5,3.66130499]
[1641665210233,1.09988802,3018.7,3016.5,2.00479]
[1641665210430,1.09988802,3018.6,3016.8,0.99440074]
[1641665210632,1.09988802,3018.2,3017.6,1.65593894]
[1641665210832,0.264788,3018.1,3016.9,0.08283]
[1641665211032,5.0,3017.8,3016.9,0.08283]
[1641665211232,1.09988802,3018.0,3017.6,1.65589507]
[1641665211430,1.09988802,3018.0,3017.5,0.905575]
[1641665211639,0.264788,3018.1,3017.5,0.905575]
[1641665211832,2.00479,3018.2,3017.5,0.905575]
[1641665212032,0.264788,3018.1,3017.5,0.264788]
[1641665212633,1.09988802,3017.6,3017.0,0.99436154]
[1641665212834,1.09988802,3017.3,3015.6,0.08284]
[1641665213034,1.09988802,3017.0,3016.6,0.264788]
[1641665213235,1.09988802,3017.3,3016.6,0.264788]
[1641665213435,1.09988802,3017.2,3016.6,0.264788]
[1641665213635,1.52966398,3016.9,3016.6,0.264788]
[1641665214238,1.09988802,3016.8,3016.4,2.00479]
[1641665214437,1.09988802,3016.5,3015.6,0.6725]
[1641665214737,1.09988802,3016.5,3015.4,0.08287]
[1641665214938,1.09988802,3016.4,3015.0,0.08289]
[1641665215138,2.00479,3017.1,3015.0,0.08289]
[1641665215339,3.50479,3017.1,3015.5,1.65706947]
[1641665215538,1.09988802,3015.6,3015.0,0.08289]
[1641665215739,0.264788,3015.5,3014.5,0.0829]
[1641665215938,0.264788,3015.5,3014.4,1.43307379]
[1641665215939,2.00479,3015.1,3014.4,1.43307379]
[1641665216137,1.09988802,3014.6,3014.5,0.640787]
[1641665216339,2.00479,3015.1,3014.4,1.6576573]
[1641665216741,0.264788,3015.0,3014.4,1.9224453]
[1641665217140,0.264788,3015.0,3014.2,2.00479]
[1641665217339,2.00479,3015.1,3014.4,0.264788]
[1641665217542,0.264788,3015.0,3014.4,0.264788]
[1641665217740,1.09988802,3014.8,3014.4,1.92247003]
[1641665217940,2.00479,3015.1,3014.4,1.92247003]
[1641665218141,2.00479,3015.1,3014.5,0.640787]
[1641665218343,1.09988802,3014.9,3014.6,0.264788]
[1641665218541,1.46849572,3015.0,3014.6,0.264788]
[1641665218742,1.14150772,3015.0,3014.6,0.264788]
[1641665219742,1.09988802,3016.3,3014.6,0.264788]
[1641665219941,1.09988802,3016.3,3016.0,2.00479]
[1641665220141,2.00479,3016.8,3016.0,2.00479]
[1641665220142,0.264788,3016.4,3016.0,2.00479]
[1641665220343,1.09988802,3016.6,3016.0,2.00479]
[1641665220542,2.00479,3016.8,3016.0,2.00479]
[1641665220743,1.38113484,3016.5,3016.2,1.65670161]
[1641665221144,1.09988802,3017.6,3016.0,0.264788]
[1641665221345,33.46010544,3017.7,3016.5,0.40011198]
[1641665221544,33.37723544,3017.7,3016.7,0.40011198]
[1641665221742,31.47923544,3017.7,3016.8,0.08284]
[1641665221945,31.47923544,3017.7,3016.8,1.07724836]
[1641665221946,2.00479,3017.4,3016.8,1.07724836]
[1641665222144,2.00479,3017.4,3016.9,0.264788]
[1641665222345,2.269578,3017.4,3017.0,0.08284]
[1641665222544,2.269578,3017.4,3016.8,1.07724836]
[1641665222744,1.52003637,3017.3,3016.8,0.99440836]